[Event "EYCC Open-U18 2019"]
[Site "Bratislava"]
[Date "2019.08.08"]
[Round "7.5"]
[White "Engel, Luis"]
[Black "Gorshtein, Ido"]
[Result "1/2-1/2"]
[ECO "B12"]
[WhiteElo "2509"]
[BlackElo "2367"]
[Annotator "ChessBase"]
[PlyCount "113"]
[EventDate "2019.08.02"]
[EventType "swiss"]
[EventCountry "SVK"]
[SourceTitle "playchess.com"]
[Source "ChessBase"]
[SourceQuality "1"]
[TimeControl "40/5400+30:1800+30"]

1. e4 {[%emt 0:00:00]} c6 {[%emt 0:00:00]} 2. d4 {[%emt 0:00:00]} d5 {[%emt 0:00:00]} 3. e5 {[%emt 0:00:00]} Bf5 {[%emt 0:00:00]} 4. Nf3 {[%emt 0:00:00]} e6 {[%emt 0:00:00]} 5. Be2 {[%emt 0:00:00]} Ne7 {[%emt 0:00:02]} 6. O-O {[%emt 0:00:00]} c5 {[%emt 0:00:07]} 7. dxc5 {[%emt 0:00:07]} Nec6 {[%emt 0:00:14]} 8. Be3 {[%emt 0:00:18]} Nd7 {[%emt 0:04:43]} 9. c4 {[%emt 0:00:17]} dxc4 {[%emt 0:02:20]} 10. Na3 {[%emt 0:00:08]} c3 {[%emt 0:13:27]} 11. Qb3 {[%emt 0:02:59]} Bxc5 {[%emt 0:15:17]} 12. Bxc5 {[%emt 0:02:18]} Nxc5 {[%emt 0:00:14]} 13. Qxc3 {[%emt 0:00:07]} Qe7 {[%emt 0:02:25]} 14. Rac1 {[%emt 0:04:45]} Nd7 {[%emt 0:06:10]} 15. Nc4 {[%emt 0:20:16]} O-O {[%emt 0:00:08]} 16. Qe3 {[%emt 0:02:33]} Rfd8 {[%emt 0:11:01]} 17. a3 {[%emt 0:03:20]} Nf8 {[%emt 0:03:44]} 18. Rfd1 {[%emt 0:04:58]} Rxd1+ {[%emt 0:08:59]} 19. Rxd1 {[%emt 0:00:17]} Rd8 {[%emt 0:02:56]} 20. Rd6 {[%emt 0:11:34]} Rc8 {[%emt 0:04:30]} 21. h3 {[%emt 0:05:07]} Nd7 {[%emt 0:05:30]} 22. Rd2 {[%emt 0:02:26]} Nb6 {[%emt 0:01:09]} 23. Nxb6 {[%emt 0:01:05]} axb6 {[%emt 0:00:02]} 24. Qxb6 {[%emt 0:00:22]} Be4 {[%emt 0:00:08]} 25. Qe3 {[%emt 0:01:56]} Bd5 {[%emt 0:00:07]} 26. Rc2 {[%emt 0:02:56]} Rd8 {[%emt 0:01:43]} 27. Rc1 {[%emt 0:02:33]} h6 {[%emt 0:01:14]} 28. b4 {[%emt 0:02:37]} Qd7 {[%emt 0:04:41]} 29. Ne1 {[%emt 0:03:40]} Ne7 {[%emt 0:02:29]} 30. Bf3 {[%emt 0:06:12]} Qa4 {[%emt 0:02:14]} 31. Bd1 {[%emt 0:02:40]} Qd7 {[%emt 0:00:25]} 32. Bc2 {[%emt 0:01:23]} Nf5 {[%emt 0:00:53]} 33. Bxf5 {[%emt 0:01:03]} exf5 {[%emt 0:00:02]} 34. Rd1 {[%emt 0:00:23]} Qe6 {[%emt 0:01:23]} 35. Nf3 {[%emt 0:01:37]} Re8 {[%emt 0:00:43]} 36. Nd4 {[%emt 0:01:22]} Qxe5 {[%emt 0:02:48]} 37. Nxf5 {[%emt 0:00:13]} Bc6 {[%emt 0:01:23]} 38. Qxe5 {[%emt 0:01:25]} Rxe5 {[%emt 0:00:02]} 39. Nd6 {[%emt 0:02:55]} f6 {[%emt 0:01:10]} 40. f3 {[%emt 0:00:00]} Kf8 {[%emt 0:00:00]} 41. Kf2 {[%emt 0:02:48]} Ke7 {[%emt 0:03:54]} 42. Nc4 {[%emt 0:02:13]} Rb5 {[%emt 0:04:22]} 43. g4 {[%emt 0:04:01]} Bd7 {[%emt 0:01:19]} 44. Rd4 {[%emt 0:03:27]} Be6 {[%emt 0:02:07]} 45. Na5 {[%emt 0:02:27]} Rb6 {[%emt 0:01:30]} 46. a4 {[%emt 0:01:01]} Ra6 {[%emt 0:00:37]} 47. Re4 {[%emt 0:01:57]} b6 {[%emt 0:02:16]} 48. Nc6+ {[%emt 0:02:37]} Kd6 {[%emt 0:00:06]} 49. Nd4 {[%emt 0:04:41]} Bd7 {[%emt 0:01:44]} 50. Nb5+ {[%emt 0:00:31]} Bxb5 {[%emt 0:00:10]} 51. axb5 {[%emt 0:00:04]} Ra2+ {[%emt 0:01:36]} 52. Kg3 {[%emt 0:00:15]} Rd2 {[%emt 0:06:33]} 53. Rc4 {[%emt 0:01:19]} Kd7 {[%emt 0:00:45]} 54. Kf4 {[%emt 0:04:52]} Rd5 {[%emt 0:00:16]} 55. Ke4 {[%emt 0:00:57]} Rxb5 {[%emt 0:01:43]} 56. f4 {[%emt 0:00:11]} g5 {[%emt 0:02:21]} 57. Rd4+ {[%emt 0:01:09]} 1/2-1/2

[Event "EYCC Open-U18 2019"]
[Site "Bratislava"]
[Date "2019.08.08"]
[Round "7.6"]
[White "Erenberg, Ariel"]
[Black "Gatineau, Yovann"]
[Result "1-0"]
[ECO "D31"]
[WhiteElo "2442"]
[BlackElo "2364"]
[Annotator "NA"]
[PlyCount "91"]
[EventDate "2019.08.02"]
[EventType "swiss"]
[EventCountry "SVK"]
[SourceTitle "playchess.com"]
[Source "ChessBase"]
[SourceQuality "1"]
[TimeControl "40/5400+30:1800+30"]

1. d4 {[%emt 0:00:00]} d5 {[%emt 0:00:00]} 2. c4 {[%emt 0:00:00]} e6 {[%emt 0:00:00]} 3. Nc3 {[%emt 0:00:00]} Bb4 {[%emt 0:00:00]} 4. a3 {[%emt 0:00:51]} Bxc3+ {[%emt 0:00:00]} 5. bxc3 {[%emt 0:00:02]} c6 {[%emt 0:00:29]} 6. a4 {[%emt 0:11:02]} Ne7 {[%emt 0:00:26]} 7. e3 {[%emt 0:01:27]} O-O {[%emt 0:01:39]} 8. Bd3 {[%emt 0:12:19]} b6 {[%emt 0:05:29]} 9. Nf3 {[%emt 0:07:41]} h6 {[%emt 0:09:19]} 10. Ba3 {[%emt 0:08:36]} Nd7 {[%emt 0:20:28]} 11. a5 {[%emt 0:15:46]} c5 {[%emt 0:06:47]} 12. cxd5 {[%emt 0:06:33]} Nxd5 {[%emt 0:05:58]} 13. c4 {[%emt 0:02:15]} N5f6 {[%emt 0:01:41]} 14. e4 {[%emt 0:01:49]} Bb7 {[%emt 0:05:53]} 15. e5 {[%emt 0:08:57]} Nh5 {[%emt 0:06:02]} 16. O-O {[%emt 0:00:13]} Nf4 {[%emt 0:02:36]} 17. Re1 {[%emt 0:01:19]} Bxf3 {[%emt 0:05:26]} 18. Qxf3 {[%emt 0:00:03]} Nxe5 {[%emt 0:00:06]} 19. dxe5 {[%emt 0:16:02]} Nxd3 {[%emt 0:00:18]} 20. Re3 {[%emt 0:01:50]} Nb4 {[%emt 0:00:17]} 21. Bxb4 {[%emt 0:00:26]} cxb4 {[%emt 0:00:07]} 22. Rd3 {[%emt 0:00:40]} Qc7 {[%emt 0:03:52]} 23. axb6 {[%emt 0:00:07]} Qxb6 {[%emt 0:00:05]} 24. Rd7 {[%emt 0:00:49]} a5 {[%emt 0:00:44]} 25. h3 {[%emt 0:00:40]} b3 {[%emt 0:01:29]} 26. Rb7 {[%emt 0:01:03]} Qd4 {[%emt 0:03:04]} 27. Rd1 {[%emt 0:00:13]} Qxc4 {[%emt 0:08:12]} 28. Rxb3 {[%emt 0:00:02]} a4 {[%emt 0:00:22]} 29. Ra3 {[%emt 0:00:33]} Rfd8 {[%emt 0:02:43]} 30. Rd7 {[%emt 0:01:39]} Rf8 {[%emt 0:08:02]} 31. Qe3 {[%emt 0:00:43]} Ra5 {[%emt 0:01:00]} 32. Rd4 {[%emt 0:01:29]} Qc2 {[%emt 0:01:10]} 33. Kh2 {[%emt 0:00:35]} Rfa8 {[%emt 0:00:45]} 34. Rg4 {[%emt 0:00:31]} Qf5 {[%emt 0:01:29]} 35. Re4 {[%emt 0:00:16]} Kh7 {[%emt 0:00:52]} 36. f4 {[%emt 0:00:36]} g5 {[%emt 0:00:37]} 37. fxg5 {[%emt 0:00:43]} hxg5 {[%emt 0:00:25]} 38. Qe2 {[%emt 0:00:18]} Rd5 {[%emt 0:00:35]} 39. Rf3 {[%emt 0:00:11]} Qg6 {[%emt 0:00:24]} 40. Rf6 {[%emt 0:00:00]} Qg7 {[%emt 0:00:00]} 41. h4 {[%emt 0:18:04]} Kg8 {[%emt 0:28:26]} 42. Rg4 {[%emt 0:01:20]} Kf8 {[%emt 0:00:15]} 43. Rxg5 {[%emt 0:00:12]} Qh7 {[%emt 0:00:15]} 44. Rh5 {[%emt 0:01:13]} Qg7 {[%emt 0:01:31]} 45. Qe4 {[%emt 0:01:46]} Ke8 {[%emt 0:02:22]} 46. Rh7 {[%emt 0:02:08]} 1-0

[Event "EYCC Open-U18 2019"]
[Site "Bratislava"]
[Date "2019.08.08"]
[Round "7.7"]
[White "Salemgareev, Tagir"]
[Black "Pantzar, Milton"]
[Result "1/2-1/2"]
[ECO "D17"]
[WhiteElo "2412"]
[BlackElo "2357"]
[Annotator "NA"]
[PlyCount "129"]
[EventDate "2019.08.02"]
[EventType "swiss"]
[EventCountry "SVK"]
[SourceTitle "playchess.com"]
[Source "ChessBase"]
[SourceQuality "1"]
[TimeControl "40/5400+30:1800+30"]

1. d4 {[%emt 0:00:00]} d5 {[%emt 0:00:00]} 2. c4 {[%emt 0:00:00]} c6 {[%emt 0:00:00]} 3. Nf3 {[%emt 0:00:00]} Nf6 {[%emt 0:00:00]} 4. Nc3 {[%emt 0:00:00]} dxc4 {[%emt 0:00:06]} 5. a4 {[%emt 0:00:00]} Bf5 {[%emt 0:00:21]} 6. Ne5 {[%emt 0:00:00]} Nbd7 {[%emt 0:01:37]} 7. Nxc4 {[%emt 0:00:00]} Nb6 {[%emt 0:00:08]} 8. Ne5 {[%emt 0:00:04]} a5 {[%emt 0:00:22]} 9. e3 {[%emt 0:00:06]} g6 {[%emt 0:13:52]} 10. g3 {[%emt 0:06:51]} Bg7 {[%emt 0:04:23]} 11. Bg2 {[%emt 0:00:06]} O-O {[%emt 0:01:28]} 12. O-O {[%emt 0:00:06]} Nfd7 {[%emt 0:04:21]} 13. f4 {[%emt 0:02:43]} Nxe5 {[%emt 0:05:15]} 14. fxe5 {[%emt 0:02:27]} Be6 {[%emt 0:02:43]} 15. Ne4 {[%emt 0:11:48]} Bc4 {[%emt 0:06:25]} 16. Re1 {[%emt 0:03:39]} Bd5 {[%emt 0:02:37]} 17. Qc2 {[%emt 0:08:05]} f6 {[%emt 0:07:22]} 18. exf6 {[%emt 0:01:30]} exf6 {[%emt 0:00:22]} 19. Nc5 {[%emt 0:02:13]} f5 {[%emt 0:05:01]} 20. Bxd5+ {[%emt 0:05:07]} cxd5 {[%emt 0:02:50]} 21. Bd2 {[%emt 0:08:15]} Qe7 {[%emt 0:03:11]} 22. Qb3 {[%emt 0:06:46]} Nc4 {[%emt 0:03:21]} 23. Rad1 {[%emt 0:01:31]} b6 {[%emt 0:02:14]} 24. Nd3 {[%emt 0:02:29]} Rad8 {[%emt 0:04:14]} 25. Bc1 {[%emt 0:20:54]} Rfe8 {[%emt 0:05:40]} 26. Qb5 {[%emt 0:03:50]} Bh6 {[%emt 0:11:27]} 27. Ne5 {[%emt 0:01:40]} Nxe5 {[%emt 0:00:34]} 28. dxe5 {[%emt 0:00:06]} Qc5 {[%emt 0:01:21]} 29. Qxc5 {[%emt 0:00:55]} bxc5 {[%emt 0:00:05]} 30. Bd2 {[%emt 0:00:05]} Rxe5 {[%emt 0:01:45]} 31. Bxa5 {[%emt 0:01:12]} Ra8 {[%emt 0:03:22]} 32. Bc7 {[%emt 0:05:30]} Rxe3 {[%emt 0:00:17]} 33. a5 {[%emt 0:00:24]} Kf7 {[%emt 0:04:00]} 34. Rxe3 {[%emt 0:01:45]} Bxe3+ {[%emt 0:00:01]} 35. Kf1 {[%emt 0:00:08]} Ke6 {[%emt 0:02:25]} 36. Bb6 {[%emt 0:00:16]} f4 {[%emt 0:02:19]} 37. gxf4 {[%emt 0:05:20]} Bxf4 {[%emt 0:00:02]} 38. h3 {[%emt 0:00:22]} Kd6 {[%emt 0:00:46]} 39. b4 {[%emt 0:02:35]} cxb4 {[%emt 0:00:27]} 40. Rd4 {[%emt 0:00:00]} Be3 {[%emt 0:00:00]} 41. Rxb4 {[%emt 0:00:21]} Bxb6 {[%emt 0:07:10]} 42. Rxb6+ {[%emt 0:00:13]} Kc5 {[%emt 0:06:27]} 43. Rb7 {[%emt 0:00:08]} Rxa5 {[%emt 0:00:44]} 44. Rxh7 {[%emt 0:00:05]} Kd4 {[%emt 0:00:34]} 45. Rg7 {[%emt 0:08:20]} Ra6 {[%emt 0:00:44]} 46. Ke2 {[%emt 0:00:30]} Re6+ {[%emt 0:03:12]} 47. Kd2 {[%emt 0:00:55]} Ke4 {[%emt 0:00:43]} 48. h4 {[%emt 0:07:00]} Kf5 {[%emt 0:07:01]} 49. Kd3 {[%emt 0:02:15]} Re1 {[%emt 0:01:18]} 50. Rf7+ {[%emt 0:02:24]} Kg4 {[%emt 0:01:12]} 51. Rg7 {[%emt 0:00:29]} Kf5 {[%emt 0:00:20]} 52. Rf7+ {[%emt 0:00:28]} Ke6 {[%emt 0:00:03]} 53. Rh7 {[%emt 0:00:51]} Rg1 {[%emt 0:01:56]} 54. Rh8 {[%emt 0:01:05]} Rg4 {[%emt 0:00:51]} 55. Ke3 {[%emt 0:04:04]} Re4+ {[%emt 0:01:05]} 56. Kd3 {[%emt 0:00:34]} Ra4 {[%emt 0:00:47]} 57. Ke3 {[%emt 0:01:42]} Kf5 {[%emt 0:02:10]} 58. Rf8+ {[%emt 0:02:21]} Kg4 {[%emt 0:00:09]} 59. Rg8 {[%emt 0:03:01]} Ra6 {[%emt 0:00:05]} 60. Rh8 {[%emt 0:00:04]} Kg3 {[%emt 0:01:39]} 61. Rh6 {[%emt 0:01:31]} Kg4 {[%emt 0:00:19]} 62. Kd4 {[%emt 0:00:33]} Kf5 {[%emt 0:00:41]} 63. Kxd5 {[%emt 0:00:32]} Ra1 {[%emt 0:00:06]} 64. Kd4 {[%emt 0:00:24]} Rh1 {[%emt 0:00:06]} 65. Ke3 {[%emt 0:00:11]} 1/2-1/2

[Event "EYCC Open-U18 2019"]
[Site "Bratislava"]
[Date "2019.08.08"]
[Round "7.8"]
[White "Gumularz, Szymon"]
[Black "Kotau, Arseni"]
[Result "1-0"]
[ECO "B85"]
[WhiteElo "2502"]
[BlackElo "2227"]
[Annotator "ChessBase"]
[PlyCount "57"]
[EventDate "2019.08.02"]
[EventType "swiss"]
[EventCountry "SVK"]
[SourceTitle "playchess.com"]
[Source "ChessBase"]
[SourceQuality "1"]
[TimeControl "40/5400+30:1800+30"]

1. e4 {[%emt 0:00:00]} c5 {[%emt 0:00:00]} 2. Nf3 {[%emt 0:00:00]} e6 {[%emt 0:00:00]} 3. d4 {[%emt 0:00:00]} cxd4 {[%emt 0:00:00]} 4. Nxd4 {[%emt 0:00:00]} a6 {[%emt 0:00:00]} 5. Be2 {[%emt 0:00:00]} Nf6 {[%emt 0:00:50]} 6. Nc3 {[%emt 0:00:00]} Qc7 {[%emt 0:00:14]} 7. O-O {[%emt 0:00:02]} d6 {[%emt 0:02:26]} 8. f4 {[%emt 0:00:11]} Nbd7 {[%emt 0:13:03]} 9. Bf3 {[%emt 0:01:04]} Be7 {[%emt 0:00:25]} 10. a4 {[%emt 0:03:23]} O-O {[%emt 0:03:28]} 11. g4 {[%emt 0:00:04]} Rd8 {[%emt 0:08:05]} 12. g5 {[%emt 0:00:31]} Ne8 {[%emt 0:00:41]} 13. Bg2 {[%emt 0:00:11]} Ne5 {[%emt 0:15:38]} 14. Kh1 {[%emt 0:15:44]} Nc4 {[%emt 0:01:31]} 15. f5 {[%emt 0:06:26]} Qb6 {[%emt 0:03:36]} 16. fxe6 {[%emt 0:07:36]} fxe6 {[%emt 0:01:03]} 17. Nxe6 {[%emt 0:01:15]} Bxe6 {[%emt 0:07:55]} 18. Nd5 {[%emt 0:00:06]} Bxd5 {[%emt 0:00:09]} 19. Qxd5+ {[%emt 0:00:03]} Kh8 {[%emt 0:00:06]} 20. Qxc4 {[%emt 0:01:09]} d5 {[%emt 0:01:01]} 21. exd5 {[%emt 0:00:10]} Nd6 {[%emt 0:00:09]} 22. Qe2 {[%emt 0:07:42]} Re8 {[%emt 0:02:05]} 23. Qd3 {[%emt 0:15:13]} Rf8 {[%emt 0:04:35]} 24. Bd2 {[%emt 0:06:44]} Rxf1+ {[%emt 0:11:57]} 25. Rxf1 {[%emt 0:00:16]} Qxb2 {[%emt 0:00:17]} 26. Bc3 {[%emt 0:01:09]} Qb6 {[%emt 0:03:00]} 27. g6 {[%emt 0:00:42]} h6 {[%emt 0:00:11]} 28. Qh3 {[%emt 0:00:33]} Bg5 {[%emt 0:00:06]} 29. Qd7 {[%emt 0:00:21]} 1-0

[Event "EYCC Open-U18 2019"]
[Site "Bratislava"]
[Date "2019.08.08"]
[Round "7.9"]
[White "Pechac, Jergus"]
[Black "Godzwon, Iwo"]
[Result "1/2-1/2"]
[ECO "E53"]
[WhiteElo "2469"]
[BlackElo "2285"]
[Annotator "ChessBase"]
[PlyCount "136"]
[EventDate "2019.08.02"]
[EventType "swiss"]
[EventCountry "SVK"]
[SourceTitle "playchess.com"]
[Source "ChessBase"]
[SourceQuality "1"]
[TimeControl "40/5400+30:1800+30"]

1. d4 {[%emt 0:02:31]} Nf6 {[%emt 0:00:00]} 2. c4 {[%emt 0:00:12]} e6 {[%emt 0:00:00]} 3. Nc3 {[%emt 0:00:24]} Bb4 {[%emt 0:00:00]} 4. e3 {[%emt 0:00:07]} O-O {[%emt 0:00:00]} 5. Bd3 {[%emt 0:00:03]} d5 {[%emt 0:00:00]} 6. Nf3 {[%emt 0:00:12]} c5 {[%emt 0:00:01]} 7. O-O {[%emt 0:00:09]} cxd4 {[%emt 0:04:41]} 8. exd4 {[%emt 0:00:06]} dxc4 {[%emt 0:00:03]} 9. Bxc4 {[%emt 0:00:12]} b6 {[%emt 0:00:04]} 10. Bg5 {[%emt 0:00:08]} Bb7 {[%emt 0:00:43]} 11. Qe2 {[%emt 0:00:22]} Nbd7 {[%emt 0:01:14]} 12. Rac1 {[%emt 0:00:13]} Rc8 {[%emt 0:00:47]} 13. Bd3 {[%emt 0:02:12]} Bxc3 {[%emt 0:00:06]} 14. bxc3 {[%emt 0:00:11]} Qc7 {[%emt 0:00:15]} 15. c4 {[%emt 0:05:45]} h6 {[%emt 0:00:23]} 16. Bd2 {[%emt 0:01:47]} Rfe8 {[%emt 0:03:27]} 17. Rfe1 {[%emt 0:01:57]} Qd6 {[%emt 0:01:19]} 18. Bc3 {[%emt 0:07:01]} Ng4 {[%emt 0:02:14]} 19. h3 {[%emt 0:02:52]} Bxf3 {[%emt 0:00:13]} 20. Qxf3 {[%emt 0:00:13]} Qh2+ {[%emt 0:00:04]} 21. Kf1 {[%emt 0:00:14]} Ngf6 {[%emt 0:00:50]} 22. Qg3 {[%emt 0:03:46]} Qxg3 {[%emt 0:00:04]} 23. fxg3 {[%emt 0:00:08]} Red8 {[%emt 0:00:13]} 24. Ke2 {[%emt 0:03:41]} Re8 {[%emt 0:25:23]} 25. Kf3 {[%emt 0:02:37]} Red8 {[%emt 0:00:36]} 26. Ke3 {[%emt 0:01:05]} Re8 {[%emt 0:00:43]} 27. Kd2 {[%emt 0:01:14]} Red8 {[%emt 0:00:28]} 28. g4 {[%emt 0:02:12]} e5 {[%emt 0:02:44]} 29. d5 {[%emt 0:02:32]} Re8 {[%emt 0:00:42]} 30. Bf1 {[%emt 0:08:47]} Re7 {[%emt 0:02:16]} 31. Kc2 {[%emt 0:02:27]} Ne8 {[%emt 0:03:24]} 32. h4 Nd6 {[%emt 0:13:26]} 33. Kb1 {[%emt 0:08:57]} f6 {[%emt 0:00:22]} 34. Bd2 {[%emt 0:02:05]} Nc5 {[%emt 0:00:39]} 35. g5 {[%emt 0:02:06]} hxg5 {[%emt 0:06:20]} 36. hxg5 {[%emt 0:00:24]} Nde4 {[%emt 0:00:07]} 37. gxf6 {[%emt 0:00:47]} Nxd2+ {[%emt 0:00:08]} 38. Kc2 {[%emt 0:00:05]} gxf6 {[%emt 0:01:29]} 39. Kxd2 {[%emt 0:00:08]} f5 {[%emt 0:01:25]} 40. Re3 {[%emt 0:00:00]} Kg7 {[%emt 0:00:00]} 41. Kc3 {[%emt 0:03:12]} Rh8 {[%emt 0:05:54]} 42. Kb4 {[%emt 0:06:24]} Kf6 {[%emt 0:00:28]} 43. a4 {[%emt 0:00:20]} f4 {[%emt 0:03:59]} 44. Rf3 {[%emt 0:01:41]} Kg5 {[%emt 0:02:28]} 45. g3 {[%emt 0:00:31]} Rh1 {[%emt 0:06:47]} 46. gxf4+ {[%emt 0:01:40]} exf4 {[%emt 0:00:05]} 47. Kb5 {[%emt 0:00:11]} Kg4 {[%emt 0:14:04]} 48. Ra3 {[%emt 0:09:57]} f3 {[%emt 0:00:30]} 49. a5 {[%emt 0:00:12]} Rh6 {[%emt 0:05:24]} 50. axb6 {[%emt 0:01:32]} axb6 {[%emt 0:00:02]} 51. Ra8 {[%emt 0:00:16]} Re3 {[%emt 0:00:04]} 52. Rb1 {[%emt 0:02:15]} Ne4 {[%emt 0:00:43]} 53. Rg8+ {[%emt 0:02:29]} Kf4 {[%emt 0:00:06]} 54. Ka6 {[%emt 0:00:22]} b5+ {[%emt 0:02:15]} 55. Ka7 {[%emt 0:02:13]} Nd2 {[%emt 0:04:32]} 56. Rd1 {[%emt 0:10:00]} Nxc4 {[%emt 0:00:24]} 57. Bxc4 {[%emt 0:02:58]} bxc4 {[%emt 0:00:03]} 58. Rc8 {[%emt 0:01:43]} Re7+ {[%emt 0:04:32]} 59. Kb8 {[%emt 0:00:19]} f2 {[%emt 0:00:04]} 60. Rxc4+ {[%emt 0:05:16]} Ke3 {[%emt 0:02:25]} 61. Rc6 {[%emt 0:05:05]} Ke2 {[%emt 0:06:58]} 62. Rxh6 {[%emt 0:02:58]} Kxd1 {[%emt 0:00:03]} 63. Rf6 {[%emt 0:00:11]} Ke2 {[%emt 0:00:34]} 64. Rxf2+ {[%emt 0:00:24]} Kxf2 {[%emt 0:00:05]} 65. Kc8 {[%emt 0:00:05]} Ke3 {[%emt 0:00:19]} 66. d6 {[%emt 0:00:06]} Rh7 {[%emt 0:00:10]} 67. d7 {[%emt 0:00:03]} Rxd7 {[%emt 0:00:03]} 68. Kxd7 Ke4 1/2-1/2

[Event "EYCC Open-U18 2019"]
[Site "Bratislava"]
[Date "2019.08.08"]
[Round "7.10"]
[White "Levitskiy, Andrey"]
[Black "Blohberger, Felix"]
[Result "1-0"]
[ECO "B90"]
[WhiteElo "2280"]
[BlackElo "2476"]
[Annotator "ChessBase"]
[PlyCount "71"]
[EventDate "2019.08.02"]
[EventType "swiss"]
[EventCountry "SVK"]
[SourceTitle "playchess.com"]
[Source "ChessBase"]
[SourceQuality "1"]
[TimeControl "40/5400+30:1800+30"]

1. e4 {[%emt 0:00:00]} c5 {[%emt 0:00:00]} 2. Nf3 {[%emt 0:00:00]} d6 {[%emt 0:00:00]} 3. d4 {[%emt 0:00:14]} cxd4 {[%emt 0:00:00]} 4. Nxd4 {[%emt 0:00:03]} Nf6 {[%emt 0:00:00]} 5. Nc3 {[%emt 0:00:10]} a6 {[%emt 0:00:01]} 6. h3 {[%emt 0:00:37]} e6 {[%emt 0:02:01]} 7. g4 {[%emt 0:00:20]} Nfd7 {[%emt 0:00:26]} 8. g5 {[%emt 0:01:07]} Be7 {[%emt 0:00:57]} 9. h4 {[%emt 0:00:23]} b5 {[%emt 0:02:44]} 10. a3 {[%emt 0:00:18]} Bb7 {[%emt 0:02:54]} 11. Be3 {[%emt 0:00:38]} Nc6 {[%emt 0:00:37]} 12. Nxc6 {[%emt 0:01:04]} Bxc6 {[%emt 0:00:07]} 13. Qd4 {[%emt 0:00:06]} O-O {[%emt 0:03:37]} 14. O-O-O {[%emt 0:00:34]} Rb8 {[%emt 0:07:08]} 15. h5 {[%emt 0:00:53]} Re8 {[%emt 0:21:38]} 16. Rg1 {[%emt 0:17:52]} Bf8 {[%emt 0:13:04]} 17. f4 {[%emt 0:22:09]} a5 {[%emt 0:07:06]} 18. g6 {[%emt 0:03:02]} fxg6 {[%emt 0:02:13]} 19. hxg6 {[%emt 0:00:47]} h6 {[%emt 0:01:11]} 20. Bh3 {[%emt 0:16:11]} b4 {[%emt 0:05:08]} 21. Qc4 {[%emt 0:07:35]} bxc3 {[%emt 0:02:59]} 22. Qxc6 {[%emt 0:00:03]} cxb2+ {[%emt 0:01:03]} 23. Kb1 {[%emt 0:00:03]} Qe7 {[%emt 0:01:36]} 24. Rd3 {[%emt 0:05:52]} Nf6 {[%emt 0:05:18]} 25. Bd4 {[%emt 0:13:45]} Rec8 {[%emt 0:09:24]} 26. Bxf6 {[%emt 0:00:19]} Qxf6 {[%emt 0:01:09]} 27. Qd7 {[%emt 0:05:18]} Re8 {[%emt 0:02:33]} 28. Rb3 {[%emt 0:01:26]} Rbd8 {[%emt 0:02:04]} 29. Qc7 {[%emt 0:01:07]} a4 {[%emt 0:05:11]} 30. Rxb2 {[%emt 0:01:07]} Rc8 {[%emt 0:00:30]} 31. Qd7 {[%emt 0:00:53]} Rb8 {[%emt 0:01:41]} 32. Rb4 {[%emt 0:01:07]} Kh8 {[%emt 0:00:50]} 33. Qf7 {[%emt 0:00:33]} Rxb4+ {[%emt 0:00:46]} 34. axb4 {[%emt 0:00:03]} Qd8 {[%emt 0:00:31]} 35. Bxe6 {[%emt 0:00:22]} Be7 {[%emt 0:00:23]} 36. Rh1 {[%emt 0:00:15]} 1-0